[Event "December 12 Early 2023"]
[Site "https://www.chess.com"]
[Date "2023.12.12"]
[Round "9"]
[White "Steinberg, Nitzan"]
[Black "Poormosavi, Seyed Kian"]
[Result "1-0"]
[Board "26"]
[TimeControl "180+1"]
[WhiteFideId "2801795"]
[BlackFideId "12585807"]
[WhiteElo "2886"]
[BlackElo "2724"]
[WhiteTeam "ISR"]
[BlackTeam "IRI"]
[WhiteClock "0:00:14"]
[BlackClock "0:00:15"]

1. e4 {[%clk 0:03:00]}  c6 {[%clk 0:02:58]} 2. d4 {[%clk 0:03:00]}  d5 {[%clk 0:02:57]} 3. Nc3 {[%clk 0:03:00]}  dxe4 {[%clk 0:02:57]} 4. Nxe4 {[%clk 0:03:01]}  Nf6 {[%clk 0:02:58]} 5. Nxf6+ {[%clk 0:03:00]}  exf6 {[%clk 0:02:58]} 6. c3 {[%clk 0:03:00]}  Bf5 {[%clk 0:02:56]} 7. Ne2 {[%clk 0:02:53]}  g6 {[%clk 0:02:56]} 8. Ng3 {[%clk 0:02:52]}  Be6 {[%clk 0:02:56]} 9. h4 {[%clk 0:02:52]}  h5 {[%clk 0:02:56]} 10. Bd3 {[%clk 0:02:50]}  Bg7 {[%clk 0:02:55]} 11. Bf4 {[%clk 0:02:29]}  Nd7 {[%clk 0:02:50]} 12. Qe2 {[%clk 0:02:24]}  f5 {[%clk 0:02:47]} 13. Bg5 {[%clk 0:02:09]}  Bf6 {[%clk 0:02:38]} 14. f4 {[%clk 0:01:59]}  Kf8 {[%clk 0:02:29]} 15. a3 {[%clk 0:01:46]}  Kg7 {[%clk 0:02:25]} 16. O-O-O {[%clk 0:01:40]}  Qb6 {[%clk 0:02:21]} 17. Bb1 {[%clk 0:01:31]}  Rae8 {[%clk 0:02:18]} 18. Qd2 {[%clk 0:01:27]}  Qb3 {[%clk 0:02:08]} 19. Rde1 {[%clk 0:01:24]}  Bd5 {[%clk 0:01:51]} 20. Re5 {[%clk 0:01:18]}  Bxg5 {[%clk 0:01:18]} 21. hxg5 {[%clk 0:01:17]}  Nxe5 {[%clk 0:01:14]} 22. fxe5 {[%clk 0:01:17]}  h4 {[%clk 0:01:10]} 23. Nf1 {[%clk 0:01:10]}  h3 {[%clk 0:01:06]} 24. Rxh3 {[%clk 0:01:01]}  Rxh3 {[%clk 0:01:06]} 25. gxh3 {[%clk 0:01:02]}  Rh8 {[%clk 0:01:06]} 26. Qe3 {[%clk 0:00:51]}  Be6 {[%clk 0:01:05]} 27. Bd3 {[%clk 0:00:20]}  Qd5 {[%clk 0:01:05]} 28. Nd2 {[%clk 0:00:12]}  Qh1+ {[%clk 0:01:04]} 29. Bf1 {[%clk 0:00:11]}  Rh4 {[%clk 0:00:55]} 30. Kc2 {[%clk 0:00:06]}  f4 {[%clk 0:00:54]} 31. Qf2 {[%clk 0:00:05]}  Bf5+ {[%clk 0:00:31]} 32. Kb3 {[%clk 0:00:05]}  Qd5+ {[%clk 0:00:31]} 33. Bc4 {[%clk 0:00:05]}  Qd7 {[%clk 0:00:32]} 34. Qxh4 {[%clk 0:00:05]}  b5 {[%clk 0:00:28]} 35. Be2 {[%clk 0:00:05]}  Qd5+ {[%clk 0:00:28]} 36. c4 {[%clk 0:00:04]}  Qxd4 {[%clk 0:00:28]} 37. Qe1 {[%clk 0:00:04]}  Qe3+ {[%clk 0:00:24]} 38. Ka2 {[%clk 0:00:04]}  Bxh3 {[%clk 0:00:24]} 39. Qd1 {[%clk 0:00:02]}  Qxe5 {[%clk 0:00:22]} 40. Bf1 {[%clk 0:00:03]}  Be6 {[%clk 0:00:19]} 41. Nf3 {[%clk 0:00:02]}  Qe3 {[%clk 0:00:20]} 42. Qd4+ {[%clk 0:00:02]}  Qxd4 {[%clk 0:00:19]} 43. Nxd4 {[%clk 0:00:03]}  Bxc4+ {[%clk 0:00:19]} 44. Bxc4 {[%clk 0:00:04]}  bxc4 {[%clk 0:00:19]} 45. Kb1 {[%clk 0:00:05]}  c5 {[%clk 0:00:18]} 46. Nf3 {[%clk 0:00:04]}  f6 {[%clk 0:00:18]} 47. Kc2 {[%clk 0:00:05]}  fxg5 {[%clk 0:00:18]} 48. Nxg5 {[%clk 0:00:06]}  Kf6 {[%clk 0:00:19]} 49. Ne4+ {[%clk 0:00:06]}  Ke5 {[%clk 0:00:19]} 50. Nxc5 {[%clk 0:00:06]}  g5 {[%clk 0:00:20]} 51. Kd2 {[%clk 0:00:07]}  g4 {[%clk 0:00:20]} 52. Ke2 {[%clk 0:00:07]}  f3+ {[%clk 0:00:17]} 53. Ke3 {[%clk 0:00:07]}  Kd5 {[%clk 0:00:17]} 54. Ne4 {[%clk 0:00:07]}  a5 {[%clk 0:00:16]} 55. Nf6+ {[%clk 0:00:07]}  Kc5 {[%clk 0:00:16]} 56. Nxg4 {[%clk 0:00:08]}  c3 {[%clk 0:00:17]} 57. bxc3 {[%clk 0:00:08]}  Kc4 {[%clk 0:00:17]} 58. Kd2 {[%clk 0:00:08]}  a4 {[%clk 0:00:17]} 59. Kc2 {[%clk 0:00:08]}  Kc5 {[%clk 0:00:12]} 60. Kd3 {[%clk 0:00:08]}  Kd5 {[%clk 0:00:13]} 61. Nf2 {[%clk 0:00:08]}  Kc5 {[%clk 0:00:13]} 62. c4 {[%clk 0:00:08]}  Kc6 {[%clk 0:00:13]} 63. Kd4 {[%clk 0:00:09]}  Kd6 {[%clk 0:00:13]} 64. c5+ {[%clk 0:00:10]}  Kc6 {[%clk 0:00:14]} 65. Kc4 {[%clk 0:00:10]}  Kc7 {[%clk 0:00:14]} 66. Kb5 {[%clk 0:00:11]}  Kb7 {[%clk 0:00:14]} 67. Kxa4 {[%clk 0:00:12]}  Kc6 {[%clk 0:00:15]} 68. Kb4 {[%clk 0:00:13]}  Kd5 {[%clk 0:00:15]} 69. Kb5 {[%clk 0:00:13]}  Kd4 {[%clk 0:00:16]} 70. c6 {[%clk 0:00:14]}  Ke3 {[%clk 0:00:15]} 71. Nh1 {[%clk 0:00:14]} 1-0

[Event "December 12 Early 2023"]
[Site "https://www.chess.com"]
[Date "2023.12.12"]
[Round "9"]
[White "Goltsev, Dmitry"]
[Black "Ilamparthi A R"]
[Result "1/2-1/2"]
[Board "28"]
[TimeControl "180+1"]
[WhiteFideId "24176710"]
[BlackFideId "45015775"]
[WhiteElo "2673"]
[BlackElo "2880"]
[WhiteTeam "RUS"]
[BlackTeam "IND"]
[WhiteClock "0:00:03"]
[BlackClock "0:00:11"]

1. e4 {[%clk 0:02:23]}  c5 {[%clk 0:02:58]} 2. Nf3 {[%clk 0:02:23]}  e6 {[%clk 0:02:53]} 3. d4 {[%clk 0:02:23]}  cxd4 {[%clk 0:02:54]} 4. Nxd4 {[%clk 0:02:24]}  Nf6 {[%clk 0:02:54]} 5. Nc3 {[%clk 0:02:25]}  Nc6 {[%clk 0:02:55]} 6. Be2 {[%clk 0:02:25]}  Bb4 {[%clk 0:02:54]} 7. Qd3 {[%clk 0:02:25]}  d5 {[%clk 0:02:47]} 8. exd5 {[%clk 0:02:22]}  Nxd5 {[%clk 0:02:44]} 9. Bd2 {[%clk 0:02:19]}  Be7 {[%clk 0:02:32]} 10. Nxd5 {[%clk 0:02:15]}  Qxd5 {[%clk 0:02:31]} 11. Nxc6 {[%clk 0:02:11]}  bxc6 {[%clk 0:02:29]} 12. Bf3 {[%clk 0:02:06]}  Qxd3 {[%clk 0:02:28]} 13. cxd3 {[%clk 0:02:07]}  Bd7 {[%clk 0:02:25]} 14. Rc1 {[%clk 0:02:07]}  Rc8 {[%clk 0:02:15]} 15. Ke2 {[%clk 0:02:06]}  Bf6 {[%clk 0:02:02]} 16. Bc3 {[%clk 0:02:04]}  Ke7 {[%clk 0:01:55]} 17. Rc2 {[%clk 0:02:00]}  Bxc3 {[%clk 0:01:51]} 18. Rxc3 {[%clk 0:02:01]}  c5 {[%clk 0:01:51]} 19. Rhc1 {[%clk 0:02:01]}  Kd6 {[%clk 0:01:50]} 20. b3 {[%clk 0:01:58]}  e5 {[%clk 0:01:46]} 21. g3 {[%clk 0:01:50]}  Be6 {[%clk 0:01:42]} 22. Ke3 {[%clk 0:01:40]}  a5 {[%clk 0:01:40]} 23. a3 {[%clk 0:01:26]}  f5 {[%clk 0:01:32]} 24. h4 {[%clk 0:01:20]}  g6 {[%clk 0:01:31]} 25. Bg2 {[%clk 0:01:15]}  h6 {[%clk 0:01:22]} 26. f4 {[%clk 0:01:01]}  exf4+ {[%clk 0:01:21]} 27. gxf4 {[%clk 0:01:02]}  Bd5 {[%clk 0:01:05]} 28. Bxd5 {[%clk 0:01:00]}  Kxd5 {[%clk 0:01:06]} 29. Kd2 {[%clk 0:00:58]}  g5 {[%clk 0:00:39]} 30. d4 {[%clk 0:00:40]}  gxf4 {[%clk 0:00:30]} 31. Rxc5+ {[%clk 0:00:39]}  Rxc5 {[%clk 0:00:29]} 32. Rxc5+ {[%clk 0:00:40]}  Kxd4 {[%clk 0:00:29]} 33. Rxa5 {[%clk 0:00:31]}  Ke4 {[%clk 0:00:29]} 34. Ke2 {[%clk 0:00:30]}  Rc8 {[%clk 0:00:26]} 35. Ra4+ {[%clk 0:00:30]}  Ke5 {[%clk 0:00:26]} 36. Rc4 {[%clk 0:00:27]}  Rb8 {[%clk 0:00:22]} 37. b4 {[%clk 0:00:24]}  Ra8 {[%clk 0:00:22]} 38. Rc3 {[%clk 0:00:20]}  Kd4 {[%clk 0:00:22]} 39. Rf3 {[%clk 0:00:19]}  Ke4 {[%clk 0:00:22]} 40. b5 {[%clk 0:00:19]}  Rc8 {[%clk 0:00:22]} 41. Rb3 {[%clk 0:00:19]}  Rc2+ {[%clk 0:00:22]} 42. Kd1 {[%clk 0:00:18]}  Ra2 {[%clk 0:00:18]} 43. b6 {[%clk 0:00:18]}  f3 {[%clk 0:00:18]} 44. Ke1 {[%clk 0:00:18]}  Ra1+ {[%clk 0:00:16]} 45. Kf2 {[%clk 0:00:17]}  Ra2+ {[%clk 0:00:17]} 46. Kg3 {[%clk 0:00:10]}  Rg2+ {[%clk 0:00:16]} 47. Kh3 {[%clk 0:00:11]}  Rg8 {[%clk 0:00:17]} 48. b7 {[%clk 0:00:10]}  f2 {[%clk 0:00:16]} 49. Rb1 {[%clk 0:00:10]}  Kf3 {[%clk 0:00:15]} 50. a4 {[%clk 0:00:10]}  Ke2 {[%clk 0:00:13]} 51. a5 {[%clk 0:00:10]}  f1=Q+ {[%clk 0:00:12]} 52. Rxf1 {[%clk 0:00:09]}  Kxf1 {[%clk 0:00:13]} 53. a6 {[%clk 0:00:10]}  Kf2 {[%clk 0:00:08]} 54. a7 {[%clk 0:00:08]}  Rg3+ {[%clk 0:00:08]} 55. Kh2 {[%clk 0:00:08]}  Rg2+ {[%clk 0:00:08]} 56. Kh3 {[%clk 0:00:09]}  Rg3+ {[%clk 0:00:09]} 57. Kh2 {[%clk 0:00:05]}  Rg2+ {[%clk 0:00:09]} 58. Kh1 {[%clk 0:00:03]}  Rg1+ {[%clk 0:00:10]} 59. Kh2 {[%clk 0:00:03]}  Rg2+ {[%clk 0:00:11]} 1/2-1/2

[Event "December 12 Early 2023"]
[Site "https://www.chess.com"]
[Date "2023.12.12"]
[Round "9"]
[White "BestStelker"]
[Black "Mikaelyan, Arman"]
[Result "1-0"]
[Board "29"]
[TimeControl "180+1"]
[BlackFideId "13304852"]
[WhiteElo "2679"]
[BlackElo "2860"]
[BlackTeam "ARM"]
[WhiteClock "0:00:02"]
[BlackClock "0:00:00"]

1. Nf3 {[%clk 0:03:00]}  d5 {[%clk 0:02:57]} 2. c4 {[%clk 0:02:59]}  d4 {[%clk 0:02:57]} 3. b4 {[%clk 0:03:00]}  f6 {[%clk 0:02:56]} 4. e3 {[%clk 0:03:00]}  e5 {[%clk 0:02:55]} 5. c5 {[%clk 0:03:01]}  a5 {[%clk 0:02:52]} 6. Qa4+ {[%clk 0:03:01]}  c6 {[%clk 0:02:43]} 7. Bc4 {[%clk 0:02:46]}  Nd7 {[%clk 0:02:26]} 8. exd4 {[%clk 0:02:40]}  b5 {[%clk 0:02:25]} 9. cxb6 {[%clk 0:02:27]}  Nxb6 {[%clk 0:02:25]} 10. Qb3 {[%clk 0:02:15]}  Nxc4 {[%clk 0:01:41]} 11. Qxc4 {[%clk 0:02:16]}  Ne7 {[%clk 0:01:30]} 12. dxe5 {[%clk 0:01:48]}  Ba6 {[%clk 0:01:28]} 13. Qb3 {[%clk 0:01:41]}  Nd5 {[%clk 0:01:23]} 14. d3 {[%clk 0:01:26]}  Bxb4+ {[%clk 0:01:04]} 15. Bd2 {[%clk 0:01:24]}  Rb8 {[%clk 0:01:05]} 16. Qc2 {[%clk 0:01:09]}  O-O {[%clk 0:01:02]} 17. O-O {[%clk 0:01:06]}  fxe5 {[%clk 0:01:02]} 18. Nxe5 {[%clk 0:00:59]}  Qf6 {[%clk 0:00:50]} 19. f4 {[%clk 0:00:32]}  Bxd2 {[%clk 0:00:45]} 20. Nxd2 {[%clk 0:00:23]}  Ne3 {[%clk 0:00:44]} 21. Qc5 {[%clk 0:00:20]}  Nxf1 {[%clk 0:00:43]} 22. Rxf1 {[%clk 0:00:21]}  Qe6 {[%clk 0:00:19]} 23. Ne4 {[%clk 0:00:16]}  Rfd8 {[%clk 0:00:18]} 24. Nxc6 {[%clk 0:00:12]}  Kh8 {[%clk 0:00:10]} 25. Nxd8 {[%clk 0:00:10]}  Rxd8 {[%clk 0:00:10]} 26. Ng5 {[%clk 0:00:08]}  Qd7 {[%clk 0:00:07]} 27. Rd1 {[%clk 0:00:05]}  h6 {[%clk 0:00:07]} 28. Nf3 {[%clk 0:00:04]}  Qe6 {[%clk 0:00:06]} 29. Ne5 {[%clk 0:00:02]}  Rf8 {[%clk 0:00:05]} 30. g3 {[%clk 0:00:02]}  Bb7 {[%clk 0:00:05]} 31. Qxf8+ {[%clk 0:00:02]}  Kh7 {[%clk 0:00:05]} 32. Qf7 {[%clk 0:00:03]}  Qb6+ {[%clk 0:00:00]} 33. Kf1 {[%clk 0:00:02]} 1-0

[Event "December 12 Early 2023"]
[Site "https://www.chess.com"]
[Date "2023.12.12"]
[Round "9"]
[White "Vakhlamov, Igor L."]
[Black "Gontcharov, Vladislav"]
[Result "1-0"]
[Board "30"]
[TimeControl "180+1"]
[WhiteFideId "24126748"]
[BlackFideId "4123492"]
[WhiteElo "2840"]
[BlackElo "2673"]
[WhiteTeam "RUS"]
[BlackTeam "RUS"]
[WhiteClock "0:00:22"]
[BlackClock "0:00:00"]

1. e4 {[%clk 0:03:00]}  e6 {[%clk 0:02:59]} 2. d4 {[%clk 0:03:00]}  d5 {[%clk 0:03:00]} 3. Nc3 {[%clk 0:03:00]}  Nc6 {[%clk 0:02:59]} 4. Nf3 {[%clk 0:02:58]}  Nf6 {[%clk 0:02:59]} 5. Bd3 {[%clk 0:02:52]}  Bb4 {[%clk 0:02:58]} 6. exd5 {[%clk 0:02:47]}  exd5 {[%clk 0:02:55]} 7. O-O {[%clk 0:02:47]}  O-O {[%clk 0:02:53]} 8. Bg5 {[%clk 0:02:46]}  Be7 {[%clk 0:02:52]} 9. h3 {[%clk 0:02:45]}  Be6 {[%clk 0:02:46]} 10. Re1 {[%clk 0:02:45]}  a6 {[%clk 0:02:40]} 11. a3 {[%clk 0:02:41]}  Re8 {[%clk 0:02:39]} 12. Qd2 {[%clk 0:02:22]}  g6 {[%clk 0:02:23]} 13. Re2 {[%clk 0:02:19]}  Qd7 {[%clk 0:02:17]} 14. Rae1 {[%clk 0:02:07]}  Qd8 {[%clk 0:02:07]} 15. b4 {[%clk 0:01:16]}  Nd7 {[%clk 0:02:05]} 16. Bxe7 {[%clk 0:01:12]}  Rxe7 {[%clk 0:02:04]} 17. Qh6 {[%clk 0:00:59]}  Nf8 {[%clk 0:02:01]} 18. Nd1 {[%clk 0:00:45]}  Qd7 {[%clk 0:01:57]} 19. Ne3 {[%clk 0:00:45]}  Rae8 {[%clk 0:01:54]} 20. c3 {[%clk 0:00:45]}  f6 {[%clk 0:01:45]} 21. Qf4 {[%clk 0:00:39]}  f5 {[%clk 0:01:16]} 22. a4 {[%clk 0:00:37]}  Bf7 {[%clk 0:01:02]} 23. b5 {[%clk 0:00:36]}  axb5 {[%clk 0:00:58]} 24. axb5 {[%clk 0:00:37]}  Ne6 {[%clk 0:00:58]} 25. Qh4 {[%clk 0:00:34]}  Ncd8 {[%clk 0:00:49]} 26. Ne5 {[%clk 0:00:34]}  Qd6 {[%clk 0:00:47]} 27. Bxf5 {[%clk 0:00:29]}  Ng7 {[%clk 0:00:32]} 28. Bd3 {[%clk 0:00:24]}  Nde6 {[%clk 0:00:25]} 29. N3g4 {[%clk 0:00:25]}  h5 {[%clk 0:00:09]} 30. Nf6+ {[%clk 0:00:25]}  Kh8 {[%clk 0:00:00]} 31. Bxg6 {[%clk 0:00:22]} 1-0

[Event "December 12 Early 2023"]
[Site "https://www.chess.com"]
[Date "2023.12.12"]
[Round "9"]
[White "Dragun, Kamil"]
[Black "Borgaonkar Akshay"]
[Result "1-0"]
[Board "31"]
[TimeControl "180+1"]
[WhiteFideId "1134167"]
[BlackFideId "25639110"]
[WhiteElo "2800"]
[BlackElo "2635"]
[WhiteTeam "POL"]
[BlackTeam "IND"]
[WhiteClock "0:00:11"]
[BlackClock "0:00:02"]

1. d4 {[%clk 0:03:00]}  Nf6 {[%clk 0:02:58]} 2. c4 {[%clk 0:03:00]}  g6 {[%clk 0:02:58]} 3. Nc3 {[%clk 0:03:00]}  Bg7 {[%clk 0:02:58]} 4. e4 {[%clk 0:03:00]}  O-O {[%clk 0:02:59]} 5. Be2 {[%clk 0:02:59]}  d6 {[%clk 0:02:59]} 6. Be3 {[%clk 0:03:00]}  c6 {[%clk 0:02:53]} 7. Nf3 {[%clk 0:02:58]}  a6 {[%clk 0:02:53]} 8. O-O {[%clk 0:02:58]}  b5 {[%clk 0:02:51]} 9. Qc2 {[%clk 0:02:45]}  Nbd7 {[%clk 0:02:42]} 10. Rfd1 {[%clk 0:02:42]}  Bb7 {[%clk 0:02:10]} 11. h3 {[%clk 0:02:29]}  Qc8 {[%clk 0:01:54]} 12. e5 {[%clk 0:02:22]}  dxe5 {[%clk 0:01:53]} 13. dxe5 {[%clk 0:02:23]}  Ne8 {[%clk 0:01:53]} 14. Bf4 {[%clk 0:02:10]}  Nc7 {[%clk 0:01:52]} 15. Ne4 {[%clk 0:01:47]}  Ne6 {[%clk 0:01:51]} 16. Bg3 {[%clk 0:01:47]}  Ndc5 {[%clk 0:01:43]} 17. Nxc5 {[%clk 0:01:24]}  Nxc5 {[%clk 0:01:44]} 18. Nd4 {[%clk 0:01:18]}  Ne6 {[%clk 0:01:40]} 19. Bg4 {[%clk 0:01:17]}  c5 {[%clk 0:01:32]} 20. Nxe6 {[%clk 0:01:14]}  fxe6 {[%clk 0:01:32]} 21. cxb5 {[%clk 0:01:07]}  axb5 {[%clk 0:01:31]} 22. Qb3 {[%clk 0:01:07]}  c4 {[%clk 0:01:21]} 23. Qxb5 {[%clk 0:01:06]}  h5 {[%clk 0:01:20]} 24. Be2 {[%clk 0:01:02]}  Bd5 {[%clk 0:01:09]} 25. Rxd5 {[%clk 0:00:56]}  exd5 {[%clk 0:01:10]} 26. Qxd5+ {[%clk 0:00:56]}  Kh7 {[%clk 0:01:08]} 27. Bxc4 {[%clk 0:00:57]}  Rb8 {[%clk 0:00:50]} 28. b3 {[%clk 0:00:55]}  Qf5 {[%clk 0:00:46]} 29. a4 {[%clk 0:00:50]}  Rbd8 {[%clk 0:00:44]} 30. Qe6 {[%clk 0:00:45]}  h4 {[%clk 0:00:36]} 31. Qxf5 {[%clk 0:00:43]}  Rxf5 {[%clk 0:00:37]} 32. Bxh4 {[%clk 0:00:44]}  Rxe5 {[%clk 0:00:36]} 33. Rf1 {[%clk 0:00:38]}  Rd2 {[%clk 0:00:32]} 34. Bg3 {[%clk 0:00:37]}  Rg5 {[%clk 0:00:31]} 35. h4 {[%clk 0:00:34]}  Rg4 {[%clk 0:00:30]} 36. Kh2 {[%clk 0:00:30]}  Rb2 {[%clk 0:00:25]} 37. Re1 {[%clk 0:00:27]}  Bf6 {[%clk 0:00:25]} 38. Kh3 {[%clk 0:00:27]}  Rd4 {[%clk 0:00:24]} 39. a5 {[%clk 0:00:27]}  Ra2 {[%clk 0:00:22]} 40. a6 {[%clk 0:00:27]}  Ra3 {[%clk 0:00:17]} 41. f3 {[%clk 0:00:25]}  Kg7 {[%clk 0:00:14]} 42. a7 {[%clk 0:00:20]}  Rxa7 {[%clk 0:00:09]} 43. Bf2 {[%clk 0:00:21]}  Rad7 {[%clk 0:00:05]} 44. Bxd4 {[%clk 0:00:20]}  Rxd4 {[%clk 0:00:05]} 45. g3 {[%clk 0:00:19]}  Rd2 {[%clk 0:00:06]} 46. f4 {[%clk 0:00:18]}  Rb2 {[%clk 0:00:04]} 47. Kg4 {[%clk 0:00:19]}  Kf8 {[%clk 0:00:05]} 48. Re6 {[%clk 0:00:19]}  Rg2 {[%clk 0:00:04]} 49. Re3 {[%clk 0:00:18]}  Bd4 {[%clk 0:00:03]} 50. Rd3 {[%clk 0:00:18]}  Bf6 {[%clk 0:00:03]} 51. b4 {[%clk 0:00:17]}  Rc2 {[%clk 0:00:03]} 52. Bd5 {[%clk 0:00:16]}  Rb2 {[%clk 0:00:03]} 53. Rb3 {[%clk 0:00:16]}  Rd2 {[%clk 0:00:03]} 54. Be4 {[%clk 0:00:16]}  Kg7 {[%clk 0:00:02]} 55. b5 {[%clk 0:00:16]}  e5 {[%clk 0:00:02]} 56. b6 {[%clk 0:00:16]}  Rd8 {[%clk 0:00:02]} 57. b7 {[%clk 0:00:16]}  Rb8 {[%clk 0:00:03]} 58. f5 {[%clk 0:00:13]}  gxf5+ {[%clk 0:00:03]} 59. Kxf5 {[%clk 0:00:14]}  Kf7 {[%clk 0:00:02]} 60. Rc3 {[%clk 0:00:13]}  Be7 {[%clk 0:00:03]} 61. Rc7 {[%clk 0:00:13]}  Kg7 {[%clk 0:00:01]} 62. Rxe7+ {[%clk 0:00:12]}  Kh6 {[%clk 0:00:02]} 63. Kxe5 {[%clk 0:00:11]}  Rf8 {[%clk 0:00:02]} 64. Rh7# {[%clk 0:00:11]} 1-0

[Event "December 12 Early 2023"]
[Site "https://www.chess.com"]
[Date "2023.12.12"]
[Round "9"]
[White "Yuan, Qingyu"]
[Black "Spata, German"]
[Result "1-0"]
[Board "32"]
[TimeControl "180+1"]
[WhiteFideId "8609772"]
[BlackFideId "113026"]
[WhiteElo "2790"]
[BlackElo "2625"]
[WhiteTeam "CHN"]
[BlackTeam "ARG"]
[WhiteClock "0:00:11"]
[BlackClock "0:00:00"]

1. e4 {[%clk 0:03:00]}  e6 {[%clk 0:02:53]} 2. d4 {[%clk 0:03:00]}  d5 {[%clk 0:02:51]} 3. Nd2 {[%clk 0:03:01]}  dxe4 {[%clk 0:02:51]} 4. Nxe4 {[%clk 0:03:01]}  Bd7 {[%clk 0:02:51]} 5. Nf3 {[%clk 0:02:53]}  Bc6 {[%clk 0:02:51]} 6. Bd3 {[%clk 0:02:46]}  Nd7 {[%clk 0:02:51]} 7. Qe2 {[%clk 0:02:41]}  Ngf6 {[%clk 0:02:48]} 8. Ng3 {[%clk 0:02:29]}  Be7 {[%clk 0:02:38]} 9. c3 {[%clk 0:02:26]}  Bxf3 {[%clk 0:02:37]} 10. Qxf3 {[%clk 0:02:25]}  c6 {[%clk 0:02:37]} 11. O-O {[%clk 0:02:24]}  O-O {[%clk 0:02:37]} 12. Re1 {[%clk 0:02:14]}  Re8 {[%clk 0:02:36]} 13. h3 {[%clk 0:02:05]}  Qa5 {[%clk 0:02:28]} 14. Bf4 {[%clk 0:02:03]}  Rad8 {[%clk 0:02:23]} 15. Bc2 {[%clk 0:01:53]}  Nf8 {[%clk 0:02:15]} 16. a3 {[%clk 0:01:52]}  Ng6 {[%clk 0:02:13]} 17. Be3 {[%clk 0:01:45]}  Qd5 {[%clk 0:02:12]} 18. Qe2 {[%clk 0:01:44]}  Qa5 {[%clk 0:02:12]} 19. Rad1 {[%clk 0:01:43]}  Qc7 {[%clk 0:02:10]} 20. Qf3 {[%clk 0:01:42]}  Bd6 {[%clk 0:02:09]} 21. Bg5 {[%clk 0:01:40]}  Be7 {[%clk 0:02:06]} 22. Bc1 {[%clk 0:01:29]}  Bd6 {[%clk 0:02:05]} 23. Nh5 {[%clk 0:01:24]}  Nxh5 {[%clk 0:02:02]} 24. Qxh5 {[%clk 0:01:25]}  Bf4 {[%clk 0:02:00]} 25. Qf3 {[%clk 0:01:12]}  Bxc1 {[%clk 0:01:58]} 26. Rxc1 {[%clk 0:01:13]}  b6 {[%clk 0:01:58]} 27. Ba4 {[%clk 0:01:12]}  Rd6 {[%clk 0:01:55]} 28. g3 {[%clk 0:01:04]}  Red8 {[%clk 0:01:55]} 29. h4 {[%clk 0:01:04]}  h6 {[%clk 0:01:50]} 30. Bc2 {[%clk 0:01:00]}  Nf8 {[%clk 0:01:47]} 31. Qe3 {[%clk 0:00:54]}  c5 {[%clk 0:01:44]} 32. dxc5 {[%clk 0:00:54]}  bxc5 {[%clk 0:01:44]} 33. b4 {[%clk 0:00:51]}  cxb4 {[%clk 0:01:39]} 34. axb4 {[%clk 0:00:46]}  Nd7 {[%clk 0:01:25]} 35. c4 {[%clk 0:00:44]}  Nf6 {[%clk 0:01:22]} 36. Bb1 {[%clk 0:00:43]}  Rd4 {[%clk 0:01:16]} 37. Qc3 {[%clk 0:00:37]}  e5 {[%clk 0:01:09]} 38. c5 {[%clk 0:00:30]}  Rb8 {[%clk 0:01:04]} 39. Qe3 {[%clk 0:00:22]}  Rdxb4 {[%clk 0:00:58]} 40. Bf5 {[%clk 0:00:18]}  e4 {[%clk 0:00:56]} 41. c6 {[%clk 0:00:18]}  a5 {[%clk 0:00:54]} 42. Red1 {[%clk 0:00:16]}  a4 {[%clk 0:00:52]} 43. Rd7 {[%clk 0:00:14]}  Qe5 {[%clk 0:00:21]} 44. c7 {[%clk 0:00:10]}  Qxf5 {[%clk 0:00:19]} 45. Rd8+ {[%clk 0:00:11]}  Kh7 {[%clk 0:00:00]} 46. Rxb8 {[%clk 0:00:11]} 1-0

[Event "December 12 Early 2023"]
[Site "https://www.chess.com"]
[Date "2023.12.12"]
[Round "9"]
[White "Timerkhanov, Alexander"]
[Black "Chigaev, Maksim"]
[Result "0-1"]
[Board "33"]
[TimeControl "180+1"]
[WhiteFideId "24177938"]
[BlackFideId "4108116"]
[WhiteElo "2671"]
[BlackElo "2909"]
[WhiteTeam "RUS"]
[BlackTeam "ESP"]
[WhiteClock "0:00:00"]
[BlackClock "0:00:17"]

1. d4 {[%clk 0:03:00]}  Nf6 {[%clk 0:02:59]} 2. Bg5 {[%clk 0:03:01]}  g6 {[%clk 0:02:58]} 3. Bxf6 {[%clk 0:03:00]}  exf6 {[%clk 0:02:59]} 4. e3 {[%clk 0:03:01]}  d5 {[%clk 0:03:00]} 5. g3 {[%clk 0:02:58]}  c6 {[%clk 0:02:59]} 6. Bg2 {[%clk 0:02:58]}  h5 {[%clk 0:03:00]} 7. h4 {[%clk 0:02:57]}  Bg4 {[%clk 0:03:00]} 8. Ne2 {[%clk 0:02:58]}  Bd6 {[%clk 0:03:00]} 9. Nd2 {[%clk 0:02:58]}  Nd7 {[%clk 0:02:59]} 10. c4 {[%clk 0:02:58]}  dxc4 {[%clk 0:02:57]} 11. Nxc4 {[%clk 0:02:59]}  Bb4+ {[%clk 0:02:57]} 12. Nd2 {[%clk 0:02:59]}  O-O {[%clk 0:02:53]} 13. a3 {[%clk 0:02:55]}  Bxd2+ {[%clk 0:02:48]} 14. Qxd2 {[%clk 0:02:55]}  Bxe2 {[%clk 0:02:49]} 15. Qxe2 {[%clk 0:02:55]}  f5 {[%clk 0:02:49]} 16. O-O {[%clk 0:02:47]}  Nf6 {[%clk 0:02:49]} 17. Rfc1 {[%clk 0:02:44]}  Re8 {[%clk 0:02:47]} 18. Bf3 {[%clk 0:02:39]}  Qd6 {[%clk 0:02:32]} 19. Rc5 {[%clk 0:02:34]}  a6 {[%clk 0:02:28]} 20. Rac1 {[%clk 0:02:32]}  Ne4 {[%clk 0:02:08]} 21. Bxe4 {[%clk 0:02:31]}  Rxe4 {[%clk 0:02:09]} 22. Qd1 {[%clk 0:01:58]}  Rae8 {[%clk 0:02:00]} 23. R1c3 {[%clk 0:01:56]}  Rg4 {[%clk 0:00:59]} 24. Qf3 {[%clk 0:01:40]}  Ree4 {[%clk 0:00:53]} 25. b4 {[%clk 0:01:36]}  Qe6 {[%clk 0:00:39]} 26. Kg2 {[%clk 0:01:13]}  f4 {[%clk 0:00:37]} 27. d5 {[%clk 0:00:41]}  cxd5 {[%clk 0:00:36]} 28. exf4 {[%clk 0:00:41]}  d4 {[%clk 0:00:27]} 29. Rc8+ {[%clk 0:00:15]}  Kg7 {[%clk 0:00:27]} 30. Rc1 {[%clk 0:00:14]}  Rexf4 {[%clk 0:00:20]} 31. Qxb7 {[%clk 0:00:14]}  Qe2 {[%clk 0:00:21]} 32. Rf1 {[%clk 0:00:06]}  Rxg3+ {[%clk 0:00:16]} 33. Kxg3 {[%clk 0:00:04]}  Rg4+ {[%clk 0:00:16]} 34. Kh2 {[%clk 0:00:00]}  Qxf1 {[%clk 0:00:17]} 0-1